[Event "*** SCC Grand Prix: Titled Tuesday Blitz"]
[Site "Chess.com"]
[Date "2020.07.21"]
[Round "4"]
[White "Rish_97"]
[Black "FMJoseHerrera"]
[Result "1-0"]
[WhiteElo "2708"]
[BlackElo "2498"]
[TimeControl "180+1"]
[EndTime "10:37:57 PDT"]
[Termination "Rish_97 won by resignation"]

1. d4 {[%clk 0:03:00]} 1... Nf6 {[%clk 0:02:56.6]} 2. c4 {[%clk 0:02:57.9]} 2...
c5 {[%clk 0:02:55.2]} 3. e3 {[%clk 0:02:56.4]} 3... g6 {[%clk 0:02:54.9]} 4. d5
{[%clk 0:02:54.8]} 4... Bg7 {[%clk 0:02:52.4]} 5. Nf3 {[%clk 0:02:55.1]} 5...
O-O {[%clk 0:02:52.2]} 6. Be2 {[%clk 0:02:55.3]} 6... d6 {[%clk 0:02:50.4]} 7.
O-O {[%clk 0:02:54.5]} 7... b5 {[%clk 0:02:49.1]} 8. cxb5 {[%clk 0:02:53.1]}
8... a6 {[%clk 0:02:48.7]} 9. Nc3 {[%clk 0:02:44]} 9... axb5 {[%clk 0:02:46.5]}
10. Bxb5 {[%clk 0:02:44.9]} 10... Qa5 {[%clk 0:02:43.7]} 11. a4 {[%clk
0:02:43.3]} 11... Na6 {[%clk 0:02:43]} 12. Nd2 {[%clk 0:02:39.9]} 12... Nb4
{[%clk 0:02:40.9]} 13. Nc4 {[%clk 0:02:37.8]} 13... Qc7 {[%clk 0:02:41.2]} 14.
e4 {[%clk 0:02:36.5]} 14... Ba6 {[%clk 0:02:39.9]} 15. Bf4 {[%clk 0:02:23.1]}
15... Nh5 {[%clk 0:02:27.3]} 16. Bg5 {[%clk 0:02:21.7]} 16... Rfb8 {[%clk
0:02:26.6]} 17. Re1 {[%clk 0:02:14.7]} 17... Nf6 {[%clk 0:02:15.1]} 18. e5
{[%clk 0:01:58.9]} 18... dxe5 {[%clk 0:02:15.1]} 19. Nxe5 {[%clk 0:01:59.2]}
19... Bxb5 {[%clk 0:02:13.2]} 20. Nxb5 {[%clk 0:01:56.9]} 20... Qb7 {[%clk
0:01:35]} 21. d6 {[%clk 0:01:42.8]} 21... Rd8 {[%clk 0:01:26.4]} 22. Ng4 {[%clk
0:01:10.2]} 22... Nxg4 {[%clk 0:00:31.3]} 23. Qxg4 {[%clk 0:01:11.1]} 23... Nc2
{[%clk 0:00:28.8]} 24. dxe7 {[%clk 0:00:55.9]} 24... Re8 {[%clk 0:00:15.7]} 25.
Nd6 {[%clk 0:00:55.4]} 25... Qxb2 {[%clk 0:00:16]} 26. Rab1 {[%clk 0:00:46.2]}
26... Qa2 {[%clk 0:00:16.4]} 27. Rec1 {[%clk 0:00:36.1]} 27... Nd4 {[%clk
0:00:16.5]} 28. Nxe8 {[%clk 0:00:33.5]} 28... Rxe8 {[%clk 0:00:17.4]} 29. Qd7
{[%clk 0:00:31.9]} 29... Qxa4 {[%clk 0:00:08.4]} 30. Qxa4 {[%clk 0:00:30.9]} 1-0

[Event "*** SCC Grand Prix: Titled Tuesday Blitz"]
[Site "Chess.com"]
[Date "2020.07.21"]
[Round "4"]
[White "IMHansNiemann"]
[Black "QuintilianoR"]
[Result "1-0"]
[WhiteElo "2967"]
[BlackElo "2677"]
[TimeControl "180+1"]
[EndTime "10:38:00 PDT"]
[Termination "IMHansNiemann won on time"]

1. d4 {[%clk 0:03:00.9]} 1... d5 {[%clk 0:02:58.5]} 2. Nc3 {[%clk 0:02:54.6]}
2... Nf6 {[%clk 0:02:57.8]} 3. Bf4 {[%clk 0:02:54.5]} 3... a6 {[%clk 0:02:57.3]}
4. e3 {[%clk 0:02:54.3]} 4... e6 {[%clk 0:02:57.1]} 5. Nf3 {[%clk 0:02:54.4]}
5... c5 {[%clk 0:02:57]} 6. dxc5 {[%clk 0:02:54.9]} 6... Bxc5 {[%clk 0:02:56]}
7. Bd3 {[%clk 0:02:55.5]} 7... Nc6 {[%clk 0:02:54.3]} 8. O-O {[%clk 0:02:55.3]}
8... O-O {[%clk 0:02:53.4]} 9. e4 {[%clk 0:02:55.4]} 9... dxe4 {[%clk
0:02:50.7]} 10. Nxe4 {[%clk 0:02:55.3]} 10... Nxe4 {[%clk 0:02:50.3]} 11. Bxe4
{[%clk 0:02:56.2]} 11... Qf6 {[%clk 0:02:25.5]} 12. Qc1 {[%clk 0:02:38.5]} 12...
h6 {[%clk 0:02:22.4]} 13. c3 {[%clk 0:02:27]} 13... Rd8 {[%clk 0:02:04.8]} 14.
Bg3 {[%clk 0:02:22.9]} 14... Bd7 {[%clk 0:01:49.2]} 15. Qe1 {[%clk 0:01:55.3]}
15... Be8 {[%clk 0:01:40.7]} 16. Bc2 {[%clk 0:01:55.2]} 16... g6 {[%clk
0:01:08.2]} 17. Bh4 {[%clk 0:01:51.9]} 17... g5 {[%clk 0:01:02.9]} 18. Bg3
{[%clk 0:01:52]} 18... Bf8 {[%clk 0:00:57.8]} 19. Qe4 {[%clk 0:01:48.8]} 19...
Bg7 {[%clk 0:00:55.6]} 20. Rad1 {[%clk 0:01:46.1]} 20... Rxd1 {[%clk 0:00:53.8]}
21. Rxd1 {[%clk 0:01:45.7]} 21... Rd8 {[%clk 0:00:54.3]} 22. Qh7+ {[%clk
0:01:30.1]} 22... Kf8 {[%clk 0:00:53.4]} 23. Bd6+ {[%clk 0:01:30.4]} 23... Rxd6
{[%clk 0:00:19]} 24. Rxd6 {[%clk 0:01:30]} 24... g4 {[%clk 0:00:19.4]} 25. Nd2
{[%clk 0:01:29.8]} 25... Qe5 {[%clk 0:00:17.3]} 26. Qd3 {[%clk 0:01:29.5]} 26...
Qe1+ {[%clk 0:00:17.3]} 27. Nf1 {[%clk 0:01:29.8]} 27... Ne5 {[%clk 0:00:16.5]}
28. Qd1 {[%clk 0:01:27.2]} 28... Qxd1 {[%clk 0:00:12.6]} 29. Rxd1 {[%clk
0:01:28.1]} 29... Bc6 {[%clk 0:00:12.4]} 30. b3 {[%clk 0:01:25.5]} 30... Ke7
{[%clk 0:00:12.3]} 31. Ng3 {[%clk 0:01:24.5]} 31... f5 {[%clk 0:00:12.3]} 32.
Ne2 {[%clk 0:01:21.5]} 32... Nf7 {[%clk 0:00:06.3]} 33. c4 {[%clk 0:01:17.6]}
33... Nd6 {[%clk 0:00:05]} 34. Nf4 {[%clk 0:01:17.3]} 34... Be4 {[%clk
0:00:04.7]} 35. Bxe4 {[%clk 0:01:15.5]} 35... Nxe4 {[%clk 0:00:05.6]} 36. f3
{[%clk 0:01:15]} 36... gxf3 {[%clk 0:00:04.8]} 37. gxf3 {[%clk 0:01:15.9]} 37...
Nc5 {[%clk 0:00:02.9]} 38. Kf2 {[%clk 0:01:15.3]} 38... Bf6 {[%clk 0:00:02]} 39.
Ke2 {[%clk 0:01:14.5]} 39... Bg5 {[%clk 0:00:01.7]} 40. Ng2 {[%clk 0:01:13.1]}
40... Nd7 {[%clk 0:00:01.8]} 41. h4 {[%clk 0:01:12.9]} 41... Bf6 {[%clk
0:00:01.5]} 42. h5 {[%clk 0:01:11.6]} 42... Ne5 {[%clk 0:00:01.4]} 43. Nf4
{[%clk 0:01:10.9]} 43... Nf7 {[%clk 0:00:01.7]} 44. Ng6+ {[%clk 0:01:11.1]}
44... Ke8 {[%clk 0:00:02.1]} 45. f4 {[%clk 0:01:10.4]} 45... Nd8 {[%clk
0:00:01.8]} 46. Rd6 {[%clk 0:01:07.1]} 1-0

[Event "*** SCC Grand Prix: Titled Tuesday Blitz"]
[Site "Chess.com"]
[Date "2020.07.21"]
[Round "4"]
[White "chalowey97"]
[Black "MasterKroket"]
[Result "0-1"]
[WhiteElo "2130"]
[BlackElo "2402"]
[TimeControl "180+1"]
[EndTime "10:38:00 PDT"]
[Termination "MasterKroket won on time"]

1. d4 {[%clk 0:03:00.9]} 1... Nf6 {[%clk 0:02:59.3]} 2. Nf3 {[%clk 0:03:01]}
2... e6 {[%clk 0:02:57.5]} 3. e3 {[%clk 0:03:01.3]} 3... b6 {[%clk 0:02:57.1]}
4. b3 {[%clk 0:03:00.6]} 4... Bb7 {[%clk 0:02:57.4]} 5. Nbd2 {[%clk 0:03:01]}
5... c5 {[%clk 0:02:56.8]} 6. Bd3 {[%clk 0:03:01]} 6... cxd4 {[%clk 0:02:56.9]}
7. exd4 {[%clk 0:03:01]} 7... Be7 {[%clk 0:02:52.3]} 8. O-O {[%clk 0:03:00.7]}
8... O-O {[%clk 0:02:51.5]} 9. Bb2 {[%clk 0:03:00.9]} 9... Nd5 {[%clk
0:02:42.3]} 10. Re1 {[%clk 0:02:57.8]} 10... Nf4 {[%clk 0:02:41.9]} 11. Bf1
{[%clk 0:02:57.5]} 11... f5 {[%clk 0:02:37.7]} 12. c4 {[%clk 0:02:53]} 12... Bf6
{[%clk 0:02:37.2]} 13. g3 {[%clk 0:02:38.2]} 13... Ng6 {[%clk 0:02:36]} 14. Ne5
{[%clk 0:02:27.5]} 14... Nc6 {[%clk 0:02:24.7]} 15. Bg2 {[%clk 0:02:14]} 15...
Qc7 {[%clk 0:02:13]} 16. Nxg6 {[%clk 0:02:11.3]} 16... hxg6 {[%clk 0:02:11.2]}
17. Nf3 {[%clk 0:01:58.3]} 17... Rad8 {[%clk 0:01:56.4]} 18. Qe2 {[%clk
0:01:50.4]} 18... Rfe8 {[%clk 0:01:52.7]} 19. Rad1 {[%clk 0:01:46.9]} 19... d6
{[%clk 0:01:52.3]} 20. Nh4 {[%clk 0:01:46.7]} 20... Kf7 {[%clk 0:01:47.7]} 21.
d5 {[%clk 0:01:36.7]} 21... Ne5 {[%clk 0:01:31.3]} 22. dxe6+ {[%clk 0:01:02]}
22... Rxe6 {[%clk 0:01:22.5]} 23. f4 {[%clk 0:01:00.7]} 23... Nf3+ {[%clk
0:01:22.8]} 24. Nxf3 {[%clk 0:00:43.2]} 24... Rxe2 {[%clk 0:01:22.3]} 25. Rxe2
{[%clk 0:00:41.7]} 25... Re8 {[%clk 0:01:15.1]} 26. Rxe8 {[%clk 0:00:18.8]}
26... Kxe8 {[%clk 0:01:16]} 27. Ba3 {[%clk 0:00:13.7]} 27... Be7 {[%clk
0:01:08.6]} 28. Ng5 {[%clk 0:00:10.1]} 28... Bxg2 {[%clk 0:01:04.7]} 29. Kxg2
{[%clk 0:00:08.5]} 29... b5 {[%clk 0:01:00.7]} 30. Rd4 {[%clk 0:00:04.5]} 30...
Qa5 {[%clk 0:00:57]} 31. Bb2 {[%clk 0:00:02.2]} 31... Qxa2 {[%clk 0:00:56.1]}
32. Rd2 {[%clk 0:00:02.6]} 32... Qxb3 {[%clk 0:00:54.5]} 33. Re2 {[%clk
0:00:02.1]} 33... bxc4 {[%clk 0:00:50.1]} 34. Bxg7 {[%clk 0:00:01.1]} 34... Qd3
{[%clk 0:00:45.5]} 0-1

[Event "*** SCC Grand Prix: Titled Tuesday Blitz"]
[Site "Chess.com"]
[Date "2020.07.21"]
[Round "4"]
[White "Shield12"]
[Black "davidkalashian"]
[Result "1-0"]
[WhiteElo "2846"]
[BlackElo "2536"]
[TimeControl "180+1"]
[EndTime "10:38:04 PDT"]
[Termination "Shield12 won on time"]

1. e4 {[%clk 0:03:00.9]} 1... c5 {[%clk 0:02:59.6]} 2. Nf3 {[%clk 0:03:01.3]}
2... d6 {[%clk 0:02:58.8]} 3. Bb5+ {[%clk 0:03:00.6]} 3... Bd7 {[%clk
0:02:57.9]} 4. Bxd7+ {[%clk 0:03:00.5]} 4... Qxd7 {[%clk 0:02:58.8]} 5. c4
{[%clk 0:02:59.8]} 5... Nf6 {[%clk 0:02:55.8]} 6. Nc3 {[%clk 0:03:00.1]} 6... e5
{[%clk 0:02:55.8]} 7. d3 {[%clk 0:02:58.7]} 7... Nc6 {[%clk 0:02:55]} 8. a3
{[%clk 0:02:58.5]} 8... Be7 {[%clk 0:02:53.4]} 9. O-O {[%clk 0:02:59.1]} 9...
O-O {[%clk 0:02:51.3]} 10. Rb1 {[%clk 0:02:59.1]} 10... Ne8 {[%clk 0:02:48.5]}
11. b4 {[%clk 0:02:58]} 11... b6 {[%clk 0:02:47.1]} 12. Nd5 {[%clk 0:02:53.7]}
12... f5 {[%clk 0:02:43.2]} 13. Qa4 {[%clk 0:02:51.7]} 13... Rc8 {[%clk
0:02:35.4]} 14. bxc5 {[%clk 0:02:50]} 14... bxc5 {[%clk 0:02:23.4]} 15. Qa6
{[%clk 0:02:07.2]} 15... fxe4 {[%clk 0:02:18.7]} 16. dxe4 {[%clk 0:02:05.6]}
16... Rxf3 {[%clk 0:02:17.7]} 17. gxf3 {[%clk 0:02:03.2]} 17... Bf8 {[%clk
0:01:43.1]} 18. Kg2 {[%clk 0:01:50.7]} 18... Qe6 {[%clk 0:01:30.4]} 19. Rg1
{[%clk 0:01:34.8]} 19... Nd4 {[%clk 0:00:57.6]} 20. Be3 {[%clk 0:01:31.8]} 20...
Rc6 {[%clk 0:00:51.5]} 21. Qb7 {[%clk 0:01:22.7]} 21... Rc8 {[%clk 0:00:16.1]}
22. Kh1 {[%clk 0:00:46.6]} 22... Nxf3 {[%clk 0:00:13.1]} 23. Rg3 {[%clk
0:00:47.2]} 23... Nh4 {[%clk 0:00:11]} 24. Qxa7 {[%clk 0:00:33.2]} 24... Ng6
{[%clk 0:00:07.5]} 25. a4 {[%clk 0:00:33.2]} 25... Rd8 {[%clk 0:00:05]} 26. a5
{[%clk 0:00:31.9]} 26... Nf6 {[%clk 0:00:03.1]} 27. Bg5 {[%clk 0:00:24.2]} 1-0

[Event "*** SCC Grand Prix: Titled Tuesday Blitz"]
[Site "Chess.com"]
[Date "2020.07.21"]
[Round "4"]
[White "AniJak"]
[Black "Zarinur"]
[Result "1-0"]
[WhiteElo "2299"]
[BlackElo "2095"]
[TimeControl "180+1"]
[EndTime "10:38:04 PDT"]
[Termination "AniJak won by resignation"]

1. e4 {[%clk 0:02:59.8]} 1... e5 {[%clk 0:02:58.9]} 2. Nc3 {[%clk 0:02:58.7]}
2... Nf6 {[%clk 0:02:57.5]} 3. g3 {[%clk 0:02:58.8]} 3... d5 {[%clk 0:02:53.8]}
4. exd5 {[%clk 0:02:58.5]} 4... Nxd5 {[%clk 0:02:54.7]} 5. Bg2 {[%clk
0:02:59.1]} 5... Nxc3 {[%clk 0:02:54.6]} 6. bxc3 {[%clk 0:03:00]} 6... Bc5
{[%clk 0:02:51.9]} 7. Ne2 {[%clk 0:02:59.6]} 7... Bg4 {[%clk 0:02:46.4]} 8. h3
{[%clk 0:02:56.8]} 8... Bc8 {[%clk 0:02:40.6]} 9. d4 {[%clk 0:02:54.7]} 9...
exd4 {[%clk 0:02:40.1]} 10. cxd4 {[%clk 0:02:54.9]} 10... Bd6 {[%clk 0:02:35.7]}
11. O-O {[%clk 0:02:52.7]} 11... O-O {[%clk 0:02:34.1]} 12. c4 {[%clk
0:02:50.5]} 12... c5 {[%clk 0:02:14.2]} 13. d5 {[%clk 0:02:47.9]} 13... Nd7
{[%clk 0:02:06]} 14. Be3 {[%clk 0:02:43.6]} 14... Nb6 {[%clk 0:02:05]} 15. Rc1
{[%clk 0:02:42.4]} 15... Bf5 {[%clk 0:02:01.4]} 16. g4 {[%clk 0:02:39.9]} 16...
Bd7 {[%clk 0:01:58.5]} 17. f4 {[%clk 0:02:39.5]} 17... h5 {[%clk 0:01:56.4]} 18.
f5 {[%clk 0:02:38.1]} 18... hxg4 {[%clk 0:01:51.3]} 19. hxg4 {[%clk 0:02:38.2]}
19... Qh4 {[%clk 0:01:50.9]} 20. Nf4 {[%clk 0:02:37.1]} 20... Rfe8 {[%clk
0:01:42.3]} 21. Qf3 {[%clk 0:02:30.4]} 21... Re5 {[%clk 0:01:06.7]} 22. Bf2
{[%clk 0:02:27.2]} 22... Qg5 {[%clk 0:01:00]} 23. Nh3 {[%clk 0:02:26.4]} 23...
Qf6 {[%clk 0:00:59.3]} 24. Bg3 {[%clk 0:02:20.7]} 24... Ree8 {[%clk 0:00:51.9]}
25. g5 {[%clk 0:02:07.2]} 25... Qd4+ {[%clk 0:00:46.7]} 26. Bf2 {[%clk
0:02:07.2]} 26... Qe5 {[%clk 0:00:43.4]} 27. Rfe1 {[%clk 0:01:45.4]} 27... Qh2+
{[%clk 0:00:41.8]} 28. Kf1 {[%clk 0:01:45.7]} 28... Nxc4 {[%clk 0:00:19.4]} 29.
Rxc4 {[%clk 0:01:23]} 29... Bb5 {[%clk 0:00:16.8]} 30. Rc1 {[%clk 0:01:22.1]}
30... Bxc4+ {[%clk 0:00:11.9]} 31. Rxc4 {[%clk 0:01:22]} 31... Qe5 {[%clk
0:00:10.5]} 32. Rc1 {[%clk 0:01:11.8]} 32... Qe7 {[%clk 0:00:07.1]} 33. f6
{[%clk 0:01:09.6]} 33... Qc7 {[%clk 0:00:05.9]} 34. fxg7 {[%clk 0:01:07.1]}
34... Qa5 {[%clk 0:00:05.4]} 35. Nf4 {[%clk 0:01:00.4]} 35... Bxf4 {[%clk
0:00:04.5]} 36. Qxf4 {[%clk 0:01:00.3]} 36... Qb5+ {[%clk 0:00:04.3]} 37. Kg1
{[%clk 0:00:59.5]} 37... Re2 {[%clk 0:00:02.7]} 38. Bf1 {[%clk 0:00:57.8]} 38...
Qb4 {[%clk 0:00:01.4]} 39. Qxb4 {[%clk 0:00:56.7]} 39... cxb4 {[%clk 0:00:02.3]}
1-0

[Event "*** SCC Grand Prix: Titled Tuesday Blitz"]
[Site "Chess.com"]
[Date "2020.07.21"]
[Round "4"]
[White "GianmarcoVaR"]
[Black "jonychess03"]
[Result "1-0"]
[WhiteElo "2473"]
[BlackElo "2315"]
[TimeControl "180+1"]
[EndTime "10:38:05 PDT"]
[Termination "GianmarcoVaR won by resignation"]

1. d4 {[%clk 0:03:00.3]} 1... Nf6 {[%clk 0:02:59.6]} 2. c4 {[%clk 0:03:00.4]}
2... e6 {[%clk 0:02:59.6]} 3. Nf3 {[%clk 0:03:00.6]} 3... Bb4+ {[%clk
0:02:59.8]} 4. Nbd2 {[%clk 0:02:59.2]} 4... O-O {[%clk 0:02:58.4]} 5. a3 {[%clk
0:02:54.1]} 5... Be7 {[%clk 0:02:57.8]} 6. e4 {[%clk 0:02:53.5]} 6... d6 {[%clk
0:02:58.3]} 7. Bd3 {[%clk 0:02:53.5]} 7... c5 {[%clk 0:02:58]} 8. O-O {[%clk
0:02:52.6]} 8... cxd4 {[%clk 0:02:57.8]} 9. Nxd4 {[%clk 0:02:51.8]} 9... Nc6
{[%clk 0:02:58.7]} 10. Nxc6 {[%clk 0:02:26.7]} 10... bxc6 {[%clk 0:02:58.2]} 11.
Qe2 {[%clk 0:02:24.4]} 11... Nd7 {[%clk 0:02:47.1]} 12. Nf3 {[%clk 0:02:12.8]}
12... a5 {[%clk 0:02:43.3]} 13. Be3 {[%clk 0:01:46]} 13... Bf6 {[%clk
0:02:41.1]} 14. Rfd1 {[%clk 0:01:41.4]} 14... Qc7 {[%clk 0:02:41.1]} 15. Qc2
{[%clk 0:00:59.7]} 15... c5 {[%clk 0:02:37.3]} 16. e5 {[%clk 0:00:59.2]} 16...
Nxe5 {[%clk 0:02:35.6]} 17. Nxe5 {[%clk 0:00:58.2]} 17... Bxe5 {[%clk
0:02:33.5]} 18. Bxh7+ {[%clk 0:00:58.7]} 18... Kh8 {[%clk 0:02:31.2]} 19. Qe4
{[%clk 0:00:56.7]} 19... Bb7 {[%clk 0:02:00.5]} 20. Qh4 {[%clk 0:00:56]} 20...
Bf6 {[%clk 0:01:14.3]} 21. Qh5 {[%clk 0:00:50.5]} 21... Rfd8 {[%clk 0:00:48]}
22. Rd3 {[%clk 0:00:49]} 22... Qc6 {[%clk 0:00:44.5]} 23. Be4+ {[%clk
0:00:47.3]} 23... Kg8 {[%clk 0:00:44.5]} 24. Bxc6 {[%clk 0:00:40.9]} 24... Bxc6
{[%clk 0:00:45.4]} 25. Bg5 {[%clk 0:00:39.8]} 25... g6 {[%clk 0:00:29.4]} 26.
Qh4 {[%clk 0:00:37.1]} 26... Bxg5 {[%clk 0:00:29.4]} 27. Qxg5 {[%clk 0:00:37.7]}
27... Kg7 {[%clk 0:00:30.1]} 28. Rad1 {[%clk 0:00:33.5]} 28... d5 {[%clk
0:00:29.1]} 29. cxd5 {[%clk 0:00:32.7]} 29... Bxd5 {[%clk 0:00:30]} 30. Qe5+
{[%clk 0:00:23.6]} 30... Kf8 {[%clk 0:00:29.1]} 31. Qf6 {[%clk 0:00:22.8]} 31...
Ke8 {[%clk 0:00:27]} 32. h4 {[%clk 0:00:22.4]} 32... c4 {[%clk 0:00:23.7]} 33.
Rxd5 {[%clk 0:00:19.3]} 33... Rxd5 {[%clk 0:00:20.8]} 34. Rxd5 {[%clk
0:00:18.7]} 1-0

[Event "*** SCC Grand Prix: Titled Tuesday Blitz"]
[Site "Chess.com"]
[Date "2020.07.21"]
[Round "4"]
[White "tk22h"]
[Black "yuliagok"]
[Result "1/2-1/2"]
[WhiteElo "2300"]
[BlackElo "2095"]
[TimeControl "180+1"]
[EndTime "10:38:05 PDT"]
[Termination "Game drawn - insufficient material"]

1. c4 {[%clk 0:03:00.9]} 1... e5 {[%clk 0:02:58.4]} 2. Nc3 {[%clk 0:03:00.2]}
2... Nf6 {[%clk 0:02:57.7]} 3. Nf3 {[%clk 0:02:59.2]} 3... Nc6 {[%clk
0:02:56.6]} 4. g3 {[%clk 0:02:58.7]} 4... d5 {[%clk 0:02:53.7]} 5. cxd5 {[%clk
0:02:57.9]} 5... Nxd5 {[%clk 0:02:52.9]} 6. Bg2 {[%clk 0:02:58.2]} 6... Nb6
{[%clk 0:02:52.3]} 7. O-O {[%clk 0:02:57.9]} 7... Be6 {[%clk 0:02:50.6]} 8. b3
{[%clk 0:02:57.3]} 8... Be7 {[%clk 0:02:49]} 9. Bb2 {[%clk 0:02:57.3]} 9... O-O
{[%clk 0:02:47.5]} 10. Rc1 {[%clk 0:02:57.1]} 10... f5 {[%clk 0:02:44.4]} 11. d3
{[%clk 0:02:56.9]} 11... a5 {[%clk 0:02:41.9]} 12. e4 {[%clk 0:02:50.6]} 12...
fxe4 {[%clk 0:02:36.4]} 13. Nxe4 {[%clk 0:02:48.2]} 13... Bg4 {[%clk 0:02:32.3]}
14. h3 {[%clk 0:02:46.6]} 14... Bxf3 {[%clk 0:02:27.8]} 15. Bxf3 {[%clk
0:02:47.5]} 15... Nd4 {[%clk 0:02:26.8]} 16. Bg2 {[%clk 0:02:43.4]} 16... a4
{[%clk 0:02:25.9]} 17. Nc5 {[%clk 0:02:40.9]} 17... Bxc5 {[%clk 0:02:21]} 18.
Rxc5 {[%clk 0:02:41.8]} 18... axb3 {[%clk 0:02:16.8]} 19. axb3 {[%clk
0:02:36.2]} 19... Ra2 {[%clk 0:02:14]} 20. Bxd4 {[%clk 0:02:35]} 20... Qxd4
{[%clk 0:02:09.8]} 21. Rc2 {[%clk 0:02:19.6]} 21... Rxc2 {[%clk 0:02:06.9]} 22.
Qxc2 {[%clk 0:02:19.3]} 22... c6 {[%clk 0:02:04.4]} 23. Qe2 {[%clk 0:02:15.9]}
23... Nd5 {[%clk 0:01:57.4]} 24. Re1 {[%clk 0:02:14]} 24... Nc3 {[%clk
0:01:53.7]} 25. Qe3 {[%clk 0:01:55.8]} 25... Qxe3 {[%clk 0:01:25.7]} 26. Rxe3
{[%clk 0:01:54.5]} 26... Rd8 {[%clk 0:01:16.3]} 27. Rxe5 {[%clk 0:01:49.2]}
27... Rxd3 {[%clk 0:01:14.2]} 28. Re7 {[%clk 0:01:49]} 28... Rd1+ {[%clk
0:01:12.2]} 29. Kh2 {[%clk 0:01:48.2]} 29... Rd2 {[%clk 0:01:09.4]} 30. Rxb7
{[%clk 0:01:42.1]} 30... Rxf2 {[%clk 0:01:07.3]} 31. Kg1 {[%clk 0:01:42.2]}
31... Rc2 {[%clk 0:01:04.1]} 32. Bxc6 {[%clk 0:01:39.3]} 32... Ne2+ {[%clk
0:01:03.1]} 33. Kf2 {[%clk 0:01:39.4]} 33... Nd4+ {[%clk 0:01:00.5]} 34. Ke3
{[%clk 0:01:39.2]} 34... Nxc6 {[%clk 0:00:59.2]} 35. Rc7 {[%clk 0:01:34.8]}
35... Nb4 {[%clk 0:00:54.4]} 36. Rxc2 {[%clk 0:01:31.3]} 36... Nxc2+ {[%clk
0:00:54]} 37. Kd3 {[%clk 0:01:29.9]} 37... Ne1+ {[%clk 0:00:49.7]} 38. Kd4
{[%clk 0:01:23.5]} 38... Kf7 {[%clk 0:00:48.1]} 39. Kc4 {[%clk 0:01:18]} 39...
Ke6 {[%clk 0:00:46.7]} 40. b4 {[%clk 0:01:18.2]} 40... Kd6 {[%clk 0:00:45.5]}
41. b5 {[%clk 0:01:17.9]} 41... Kc7 {[%clk 0:00:44.5]} 42. Kd5 {[%clk
0:01:17.2]} 42... g5 {[%clk 0:00:39.6]} 43. Ke5 {[%clk 0:01:13.9]} 43... Nf3+
{[%clk 0:00:37.2]} 44. Kf5 {[%clk 0:01:13.3]} 44... Kb6 {[%clk 0:00:35.5]} 45.
Kg4 {[%clk 0:01:08.9]} 45... Ng1 {[%clk 0:00:30]} 46. Kxg5 {[%clk 0:01:08.8]}
46... Nxh3+ {[%clk 0:00:29.3]} 47. Kh6 {[%clk 0:01:08.2]} 47... Kxb5 {[%clk
0:00:29.1]} 48. Kxh7 {[%clk 0:01:08]} 48... Kc5 {[%clk 0:00:29]} 49. Kg6 {[%clk
0:01:07.1]} 49... Kd5 {[%clk 0:00:28.9]} 50. Kf5 {[%clk 0:01:07.2]} 50... Kd6
{[%clk 0:00:27.8]} 51. g4 {[%clk 0:01:07.3]} 51... Ke7 {[%clk 0:00:27.5]} 52. g5
{[%clk 0:01:07.5]} 52... Nxg5 {[%clk 0:00:27.2]} 1/2-1/2

[Event "*** SCC Grand Prix: Titled Tuesday Blitz"]
[Site "Chess.com"]
[Date "2020.07.21"]
[Round "4"]
[White "13MiRacLe"]
[Black "DonPreuss"]
[Result "1-0"]
[WhiteElo "2631"]
[BlackElo "2161"]
[TimeControl "180+1"]
[EndTime "10:38:05 PDT"]
[Termination "13MiRacLe won on time"]

1. e4 {[%clk 0:03:00]} 1... e5 {[%clk 0:02:59.7]} 2. Nf3 {[%clk 0:02:58.9]} 2...
d5 {[%clk 0:03:00.2]} 3. exd5 {[%clk 0:02:58.7]} 3... e4 {[%clk 0:02:59.8]} 4.
Qe2 {[%clk 0:02:57.5]} 4... Nf6 {[%clk 0:02:59.9]} 5. Nc3 {[%clk 0:02:57.3]}
5... Be7 {[%clk 0:02:59.8]} 6. Nxe4 {[%clk 0:02:57.2]} 6... O-O {[%clk 0:03:00]}
7. d3 {[%clk 0:02:39.2]} 7... Nxd5 {[%clk 0:02:59.5]} 8. Qd1 {[%clk 0:02:37]}
8... f5 {[%clk 0:02:58.7]} 9. Nc3 {[%clk 0:02:35.8]} 9... Bb4 {[%clk 0:02:58.5]}
10. Bd2 {[%clk 0:02:35.8]} 10... Re8+ {[%clk 0:02:57.6]} 11. Be2 {[%clk
0:02:36.2]} 11... Nc6 {[%clk 0:02:42.7]} 12. Nxd5 {[%clk 0:02:27.4]} 12... Bxd2+
{[%clk 0:02:42.7]} 13. Qxd2 {[%clk 0:02:27]} 13... Qxd5 {[%clk 0:02:43.6]} 14.
O-O {[%clk 0:02:26.7]} 14... Bd7 {[%clk 0:02:25.3]} 15. a3 {[%clk 0:02:10.4]}
15... Nd4 {[%clk 0:02:13.4]} 16. Nxd4 {[%clk 0:02:08.3]} 16... Qxd4 {[%clk
0:02:14.3]} 17. c3 {[%clk 0:02:05.1]} 17... Qh4 {[%clk 0:02:11]} 18. Bf3 {[%clk
0:02:01.4]} 18... Rad8 {[%clk 0:01:50]} 19. Bxb7 {[%clk 0:01:57.4]} 19... f4
{[%clk 0:01:44.6]} 20. Bf3 {[%clk 0:01:53.9]} 20... Rf8 {[%clk 0:01:39.1]} 21.
Rae1 {[%clk 0:01:47.2]} 21... Bg4 {[%clk 0:01:38.3]} 22. Qd1 {[%clk 0:01:42.4]}
22... h5 {[%clk 0:01:30]} 23. d4 {[%clk 0:01:39.5]} 23... Rf6 {[%clk 0:01:27.5]}
24. Re5 {[%clk 0:01:23.4]} 24... Rg6 {[%clk 0:01:22.1]} 25. Rfe1 {[%clk
0:01:06.7]} 25... Qh3 {[%clk 0:01:03.2]} 26. Qb3+ {[%clk 0:00:27.8]} 26... Kh7
{[%clk 0:00:12.3]} 27. gxh3 {[%clk 0:00:22.7]} 27... Bxf3+ {[%clk 0:00:10.1]}
28. Kf1 {[%clk 0:00:22.8]} 1-0